bitfinex-derivatives/quotes_SOLF0:USTF0_20250530
["timestamp","ask_amount","ask_price","bid_price","bid_amount"]
[1748646038817,38.74,156.84,156.75,4.0931]
[1748646039615,0.04393355,156.81,156.78,0.0419811]
[1748646041223,0.04393355,156.81,156.79,6.3759]
[1748646041428,0.04393355,156.81,156.79,38.74]
[1748646041622,38.74,156.88,156.79,38.74]
[1748646041816,6.3738,156.85,156.82,6.3744]
[1748646042024,38.74,156.88,156.79,38.74]
[1748646042220,589.8,156.92,156.79,38.74]
[1748646042417,600.78788865,156.92,156.79,38.74]
[1748646042622,0.04834749,156.87,156.84,0.04136834]
[1748646043026,6.3735,156.85,156.84,0.04136834]
[1748646045532,0.04834749,156.87,156.76,590.1]
[1748646045731,2.1725,156.87,156.76,590.1]
[1748646046528,0.04210136,156.83,156.8,0.04901378]
[1748646046833,6.3751,156.81,156.8,0.04901378]
[1748646053935,6.3749,156.82,156.8,0.04901378]
[1748646054439,0.04210136,156.83,156.8,0.04901378]
[1748646055138,6.375,156.82,156.8,0.04901378]
[1748646055337,0.04210136,156.83,156.8,0.04901378]
[1748646055531,0.04210136,156.83,156.81,6.3749]
[1748646056435,0.04210136,156.83,156.8,0.04901378]
[1748646056638,39.2,156.88,156.8,0.04901378]
[1748646056838,6.3734,156.86,156.83,6.3743]
[1748646057040,590.26,156.92,156.81,2.1846]
[1748646057236,590.26,156.92,156.82,2.1381]
[1748646057442,590.26,156.92,156.83,39.2]
[1748646057642,0.04719416,156.89,156.86,0.0402136]
[1748646058339,6.3727,156.87,156.86,0.0402136]
[1748646059941,39.18,156.88,156.78,39.18]
[1748646060446,39.18,156.88,156.75,2.0596]
[1748646060447,6.3767,156.78,156.75,2.0596]
[1748646060649,50.16788865,156.84,156.75,2.0596]
[1748646060836,50.16788865,156.84,156.74,41.3181]
[1748646061142,6.3764,156.78,156.77,0.04167591]
[1748646063242,0.04615504,156.81,156.77,0.04167591]
[1748646063632,0.04615504,156.81,156.77,2.17617591]
[1748646063842,0.04615504,156.81,156.78,6.3762]
[1748646064345,6.42155504,156.81,156.77,10.57487591]
[1748646064540,0.04615504,156.81,156.77,4.19847591]
[1748646065037,39.2,156.88,156.77,4.19847591]
[1748646065238,39.2,156.88,156.77,4.1568]
[1748646065932,39.2,156.88,156.81,0.04390091]
[1748646065933,6.3746,156.83,156.81,0.04390091]
[1748646066143,0.04626121,156.84,156.81,0.04390091]
[1748646067140,6.42046121,156.84,156.81,6.41910091]
[1748646067339,0.04626121,156.84,156.81,6.41910091]
[1748646067948,0.04626121,156.84,156.81,0.04390091]
[1748646068143,6.3747,156.82,156.81,0.04390091]
[1748646071342,0.04626121,156.84,156.81,0.04390091]
[1748646071746,39.24626121,156.84,156.81,0.04390091]
[1748646071947,6.3747,156.82,156.81,0.04390091]
[1748646073647,6.3744,156.83,156.81,0.04390091]
[1748646073950,39.24626121,156.84,156.81,0.04390091]
[1748646074451,0.04626121,156.84,156.74,2.1381]
[1748646074650,10.98788865,156.82,156.74,2.1381]
[1748646074853,51.02788865,156.82,156.7,42.1445]
[1748646075159,6.3784,156.73,156.7,42.1445]
[1748646075452,6.41875625,156.73,156.7,42.18920399]
[1748646075652,0.04035625,156.73,156.7,0.04470399]
[1748646076554,6.3792,156.71,156.7,0.04470399]
[1748646076751,0.04035625,156.73,156.7,0.04470399]
[1748646077148,0.04035625,156.73,156.7,6.42420399]
[1748646077361,6.3772,156.77,156.7,0.04470399]
[1748646077547,44.18,156.81,156.7,0.04470399]
[1748646077752,44.18,156.81,156.68,44.18]
[1748646077959,11.25433133,156.8,156.68,44.18]
[1748646078353,0.04853183,156.76,156.72,0.04232158]
[1748646078553,11.03446316,156.76,156.72,0.04232158]
[1748646078753,6.3784,156.73,156.72,0.04232158]
[1748646079262,55.21446316,156.76,156.66,2.0646]
[1748646079263,6.3804,156.68,156.66,2.0646]
[1748646079653,55.16593133,156.76,156.64,44.18]
[1748646079953,55.16593133,156.76,156.61,2.2035]
[1748646080152,10.98593133,156.72,156.61,2.2035]
[1748646080353,6.3812,156.66,156.65,2.196e-05]
[1748646080553,44.18,156.67,156.58,2.0127]
[1748646080955,6.3841,156.59,156.58,2.0127]
[1748646081150,44.18,156.67,156.56,2.2035]
[1748646081452,6.3833,156.61,156.6,1.058e-05]
[1748646081660,44.18,156.62,156.53,44.18]
[1748646081864,44.18,156.62,156.51,2.1088]
[1748646082049,44.18,156.62,156.51,8.4959]
[1748646082364,44.18,156.62,156.51,2.1088]
[1748646082557,0.04893853,156.58,156.55,0.04354866]
[1748646083450,44.2,156.57,156.55,0.04354866]
[1748646083763,44.2,156.57,156.49,2.1088]
[1748646084156,6.3877,156.51,156.46,2.0757]
[1748646084364,10.98593133,156.55,156.46,2.0757]
[1748646084661,6.3893,156.47,156.42,2.1088]
[1748646084856,0.04708285,156.46,156.43,0.04896092]
[1748646085259,44.2,156.55,156.43,0.04896092]
[1748646085560,44.2,156.55,156.42,2.1088]
[1748646085760,44.2,156.55,156.47,6.3886]
[1748646085957,44.2,156.55,156.42,2.1088]
[1748646086160,0.04024793,156.5,156.47,0.04215777]
[1748646086553,0.04024793,156.5,156.42,2.1088]
[1748646086755,44.22,156.49,156.36,44.22]
[1748646086964,11.01690334,156.48,156.36,44.22]
[1748646087261,6.3907,156.43,156.38,6.3926]
[1748646087463,11.01690334,156.48,156.36,44.22]
[1748646087656,44.22,156.49,156.34,2.1631]
[1748646087864,0.04893567,156.43,156.25,4.2486]
[1748646088060,56.9577538,156.42,156.26,2.1453]
[1748646088264,6.3939,156.35,156.29,6.3963]
[1748646088465,45.92,156.38,156.26,2.1453]
[1748646088655,47.66,156.37,156.26,2.1453]
[1748646088860,0.04162658,156.33,156.3,6.4366425]
[1748646089163,0.04162658,156.33,156.3,0.0410425]
[1748646092170,49.48,156.32,156.3,0.0410425]
[1748646092360,551.92,156.31,156.23,4.2816]
[1748646092557,551.92,156.31,156.08,18.803106]
[1748646092558,705.8941,156.31,156.03,12.8137]
[1748646092761,552.1941,156.31,156.12,18.803106]
[1748646093059,570.997206,156.31,156.13,2.0039]
[1748646093568,0.04553315,156.24,156.13,2.0039]
[1748646093869,0.04378911,156.2,156.13,2.0039]
[1748646094260,0.04378911,156.2,156.14,6.4022]
[1748646094466,551.92,156.31,156.13,51.5039]
[1748646094666,51.18,156.35,156.14,724.863106]
[1748646094865,6.3965,156.29,156.21,6.3993]
[1748646095069,51.18,156.35,156.22,2.1388]
[1748646095259,551.92,156.39,156.22,2.1388]
[1748646095567,0.04574644,156.32,156.29,0.04158929]
[1748646095768,551.92,156.39,156.27,6.3969]
[1748646095961,51.18,156.4,156.26,51.2]
[1748646096167,51.2,156.44,156.26,70.00074313]
[1748646096664,0.04440553,156.37,156.33,0.04291194]
[1748646096866,0.04440553,156.37,156.33,6.44162753]
[1748646097059,0.04440553,156.37,156.34,2.1388]
[1748646097465,0.04440553,156.37,156.33,2.17382753]
[1748646098058,6.3943,156.34,156.33,0.04702753]
[1748646098759,57.6143,156.34,156.33,2.753e-05]
[1748646098958,76.431565,156.34,156.19,51.22]
[1748646099163,70.031565,156.34,156.2,2.0456]
[1748646099367,51.22,156.34,156.2,2.0456]
[1748646099673,18.81887649,156.3,156.2,2.0456]
[1748646099858,0.04321913,156.27,156.23,0.04437741]
[1748646100066,6.3984,156.24,156.23,0.04437741]
[1748646100265,0.04321913,156.27,156.23,0.04437741]
[1748646100461,6.3977,156.26,156.23,0.04437741]
[1748646100659,0.04321913,156.27,156.23,0.04437741]
[1748646101674,6.3983,156.25,156.23,0.04437741]
[1748646101870,0.04321913,156.27,156.23,0.04437741]
[1748646103261,6.3984,156.24,156.23,0.04437741]
[1748646103466,57.6184,156.24,156.23,7.741e-05]
[1748646104070,51.22,156.24,156.23,7.741e-05]
[1748646104268,0.04321913,156.27,156.23,7.741e-05]
[1748646104470,0.04321913,156.27,156.24,6.3975]
[1748646104872,0.04321913,156.27,156.23,7.741e-05]
[1748646105271,6.3973,156.26,156.23,7.741e-05]
[1748646105475,0.04321913,156.27,156.23,7.741e-05]
[1748646105680,51.24,156.34,156.23,7.741e-05]
[1748646105871,51.24,156.34,156.21,51.24]
[1748646106271,6.3946,156.32,156.21,51.24]
[1748646106472,51.24,156.34,156.21,51.24]
[1748646106775,0.04657941,156.29,156.26,0.04360887]
[1748646106974,552.18,156.37,156.26,51.2872695]
[1748646107281,6.3945,156.32,156.27,4.2039]
[1748646107479,18.8032404,156.35,156.27,4.2039]
[1748646107673,18.8032404,156.35,156.22,51.24]
[1748646107877,18.82338845,156.27,156.19,2.1699]
[1748646108173,0.04877014,156.25,156.21,0.0429817]
[1748646108375,0.04130136,156.25,156.21,0.04269868]
[1748646108775,6.3938,156.34,156.22,206.58]
[1748646108967,552.18,156.37,156.22,206.58]
[1748646109368,6.3936,156.35,156.22,206.58]
[1748646109571,70.0623386,156.39,156.22,206.58]
[1748646109775,0.04107553,156.32,156.29,0.04634275]
[1748646109978,6.3952,156.31,156.29,0.04219244]
[1748646110170,0.04875793,156.32,156.29,0.04219244]
[1748646110377,6.3953,156.3,156.29,0.04219244]
[1748646112583,0.04875793,156.32,156.29,0.04219244]
[1748646112885,6.3953,156.3,156.29,0.04219244]
[1748646113086,0.04875793,156.32,156.29,0.04219244]
[1748646114486,0.04875793,156.32,156.29,4.16809244]
[1748646114785,0.04875793,156.32,156.29,2.08559244]
[1748646115284,6.3953,156.3,156.29,2.08559244]
[1748646115482,0.04875793,156.32,156.29,2.08559244]
[1748646117084,12.7764,156.48,156.29,2.08559244]
[1748646117281,52.1,156.43,156.29,2.0434]
[1748646117587,6.3933,156.36,156.29,2.0434]
[1748646117789,70.9223386,156.43,156.29,2.0434]
[1748646117983,0.04176771,156.38,156.34,0.04166667]
[1748646118283,6.3936,156.35,156.34,0.04166667]
[1748646119082,0.04176771,156.38,156.34,0.04166667]
[1748646119282,0.04176771,156.38,156.34,6.43506667]
[1748646119479,0.04176771,156.38,156.34,0.04166667]
[1748646119687,0.04176771,156.38,156.35,2.1283]
[1748646119987,0.04176771,156.38,156.35,8.5213]
[1748646120482,52.1,156.43,156.35,2.1283]
[1748646120687,52.1,156.48,156.35,2.1283]
[1748646120882,18.8223386,156.51,156.43,6.3899]
[1748646121182,6.3882,156.48,156.36,52.1]
[1748646121380,0.04881136,156.44,156.4,0.04470078]
[1748646121579,604.54,156.53,156.4,0.04224335]
[1748646121782,18.8223386,156.5,156.35,2.1283]
[1748646121982,604.54,156.53,156.35,2.1283]
[1748646122177,6.3899,156.44,156.35,2.1283]
[1748646122585,623.3623386,156.53,156.38,0.04652019]
[1748646122783,604.54,156.53,156.37,18.8223386]
[1748646122984,0.1781,156.56,156.38,2.0718]
[1748646123189,6.3866,156.52,156.38,2.0718]
[1748646123378,52.08,156.57,156.38,2.0718]
[1748646123787,0.04239925,156.49,156.46,0.04502051]
[1748646123990,0.04417355,156.49,156.46,0.04735772]
[1748646124287,52.08,156.57,156.46,0.04735772]
[1748646124599,52.08,156.57,156.42,207.06]
[1748646125090,52.08,156.57,156.43,154.88]
[1748646125391,6.3872,156.5,156.48,0.04203725]
[1748646125593,0.04616821,156.52,156.48,0.04203725]
[1748646126483,6.3876,156.49,156.48,0.04203725]
[1748646126691,0.04616821,156.52,156.48,0.04203725]
[1748646127283,52.08,156.57,156.48,0.04203725]
[1748646127793,52.06,156.61,156.48,0.04203725]
[1748646128092,52.06,156.61,156.48,52.06]
[1748646128394,52.06,156.61,156.53,0.04257198]
[1748646128395,0.04217798,156.56,156.53,0.04257198]
[1748646129286,6.3855,156.54,156.53,0.04257198]
[1748646129986,0.04217798,156.56,156.53,0.04257198]
[1748646131400,6.383,156.61,156.56,6.3845]
[1748646131601,6.383,156.61,156.54,4.1592]
[1748646131790,6.383,156.61,156.56,6.3847]
[1748646132093,52.06,156.66,156.54,4.1592]
[1748646132291,0.04278528,156.62,156.58,0.04395751]
[1748646132493,6.3835,156.59,156.58,0.04395751]
[1748646132790,0.04278528,156.62,156.5,4.2001]
[1748646132996,6.3855,156.55,156.5,4.2001]
[1748646133390,52.04,156.6,156.5,4.2001]
[1748646133781,0.0444475,156.57,156.53,0.04704655]
[1748646133984,6.3855,156.54,156.53,0.04704655]
[1748646134187,0.0444475,156.57,156.53,0.04704655]
[1748646134588,6.3847,156.56,156.53,0.04704655]
[1748646134787,0.0444475,156.57,156.53,0.04704655]
[1748646135797,52.04,156.66,156.53,0.04704655]
[1748646136092,52.04,156.66,156.53,52.04]
[1748646136298,6.3817,156.64,156.53,52.04]
[1748646136793,0.04873621,156.6,156.57,0.04631324]
[1748646137094,604.04,156.71,156.56,153.96]
[1748646137295,604.04,156.71,156.61,6.3826]
[1748646137495,604.04,156.71,156.57,2.1915]
[1748646137686,18.8223386,156.68,156.57,2.1915]
[1748646137999,0.04063514,156.64,156.53,52.04]
[1748646138187,604.04,156.71,156.57,0.04219252]
[1748646138188,0.0414419,156.6,156.57,0.04219252]
[1748646138394,0.1263,156.7,156.59,6.3835]
[1748646138587,0.1263,156.7,156.54,2.1915]
[1748646139196,18.8223386,156.67,156.54,2.1915]
[1748646139495,6.3834,156.6,156.59,0.04866667]
[1748646141000,0.04329007,156.62,156.59,0.04866667]
[1748646141591,6.3831,156.6,156.59,0.04866667]
[1748646142693,6.383,156.61,156.59,0.04866667]
[1748646142893,0.04329007,156.62,156.59,0.04866667]
[1748646143197,6.3831,156.6,156.59,0.04866667]
[1748646144300,0.04329007,156.62,156.59,0.04866667]
[1748646144693,6.3808,156.66,156.59,0.04866667]
[1748646145002,6.3808,156.66,156.57,51.1]
[1748646145196,51.1,156.7,156.57,51.1]
[1748646145798,6.3819,156.63,156.62,0.04770172]
[1748646146098,0.04114103,156.65,156.55,2.0917]
[1748646146303,18.8223386,156.68,156.56,6.3847]
[1748646146503,18.8223386,156.68,156.55,2.0917]
[1748646146799,6.3834,156.6,156.56,6.3847]
[1748646147095,0.04166224,156.6,156.56,0.04642188]
[1748646147298,6.3835,156.59,156.56,0.04642188]
[1748646147705,0.04166224,156.6,156.56,0.04642188]
[1748646148700,6.3843,156.57,156.56,0.04642188]
[1748646148903,0.04166224,156.6,156.38,12.7839]
[1748646149102,0.04166224,156.6,156.47,2.0302]
[1748646149103,18.8223386,156.6,156.47,2.0302]
[1748646149804,6.386,156.53,156.47,2.0302]
[1748646150106,0.0409831,156.52,156.48,0.04078474]
[1748646150297,0.04730805,156.52,156.49,6.3873]
[1748646150505,0.04730805,156.52,156.48,0.0460779]
[1748646150800,6.3872,156.51,156.48,0.0460779]
[1748646151003,0.04730805,156.52,156.48,0.0460779]
[1748646151409,18.86964665,156.52,156.48,0.0460779]
[1748646151602,69.96964665,156.52,156.41,51.08]
[1748646151803,69.9223386,156.52,156.41,51.08]
[1748646152107,51.1,156.52,156.41,51.08]
[1748646152701,0.04402353,156.48,156.45,0.04379938]
[1748646153607,51.3574,156.57,156.45,0.04379938]
[1748646153803,6.3864,156.52,156.47,6.388]
[1748646154002,51.3574,156.57,156.47,6.388]
[1748646154204,51.3574,156.57,156.41,51.08]
[1748646154407,51.1,156.57,156.41,51.08]
[1748646154809,51.1,156.57,156.47,0.04557251]
[1748646154810,0.04391754,156.51,156.47,0.04557251]
[1748646155011,0.04391754,156.51,156.5,6.3872]
[1748646155204,0.04391754,156.51,156.47,0.04643839]
[1748646155806,51.1,156.57,156.47,0.04643839]
[1748646156012,51.1,156.57,156.42,18.8223386]
[1748646156207,51.1,156.57,156.52,6.3861]
[1748646156516,551.52,156.6,156.49,152.34]
[1748646156809,0.04828854,156.56,156.53,0.04516145]
[1748646157208,51.1,156.62,156.53,0.04516145]
[1748646157405,69.9223386,156.67,156.53,51.14516145]
[1748646157605,69.9223386,156.67,156.53,51.1]
[1748646157606,51.1,156.67,156.53,51.1]
[1748646157810,51.1,156.67,156.54,18.8223386]
[1748646158000,551.68,156.69,156.54,18.8223386]
[1748646158208,0.04108839,156.63,156.6,0.04914053]
[1748646158406,51.1,156.72,156.59,152.36]
[1748646158801,18.8223386,156.69,156.59,152.36]
[1748646159413,6.382,156.63,156.62,0.04394269]
[1748646160216,51.1,156.72,156.62,0.04394269]
[1748646160408,18.8223386,156.71,156.65,0.04868263]
[1748646160806,6.3807,156.66,156.65,0.04868263]
[1748646161815,18.8223386,156.71,156.65,0.04868263]
[1748646162014,3.68980334,156.7,156.65,6.42968263]
[1748646162318,51.1,156.72,156.65,0.04868263]
[1748646162613,18.8223386,156.71,156.65,0.04868263]
[1748646162814,6.3807,156.66,156.65,0.04868263]
[1748646164014,6.3822,156.63,156.57,51.5665]
[1748646164211,18.8223386,156.7,156.57,51.5665]
[1748646164515,3.69051123,156.69,156.57,51.5665]
[1748646164712,18.8223386,156.66,156.55,2.1341]
[1748646164918,18.86428463,156.62,156.47,51.5665]
[1748646165112,68.2623386,156.62,156.47,207.0554]
[1748646165314,68.2623386,156.62,156.48,151.34]
[1748646165911,3.70429548,156.61,156.48,151.34]
[1748646166123,0.04380879,156.57,156.53,0.04596455]
[1748646166329,6.3856,156.54,156.53,0.04596455]
[1748646167920,0.04380879,156.57,156.53,0.04596455]
[1748646169125,49.44,156.62,156.53,0.04596455]
[1748646169430,6.3841,156.58,156.54,6.3855]
[1748646169630,49.44,156.62,156.49,18.8223386]
[1748646170025,49.44,156.62,156.47,55.7354]
[1748646170225,0.04483197,156.56,156.53,0.04459956]
[1748646171023,6.3852,156.55,156.53,0.04459956]
[1748646171326,0.04483197,156.56,156.53,0.04459956]
[1748646171726,0.04483197,156.56,156.53,6.43039956]
[1748646172028,0.04483197,156.56,156.53,0.04459956]
[1748646173127,6.3852,156.55,156.53,0.04459956]
[1748646173631,0.04483197,156.56,156.53,0.04459956]
[1748646173832,0.04483197,156.56,156.53,6.43049956]
[1748646174028,0.04483197,156.56,156.53,0.04459956]
[1748646175529,49.44,156.62,156.53,0.04459956]
[1748646176031,6.3828,156.61,156.53,0.04459956]
[1748646176229,49.44,156.62,156.53,0.04459956]
[1748646176737,49.44,156.62,156.53,49.48459956]
[1748646177025,49.44,156.62,156.54,2.1332]
[1748646177224,49.44,156.62,156.56,0.04396453]
[1748646178335,599.24,156.67,156.56,0.04396453]
[1748646178533,599.24,156.67,156.6,0.0488375]
[1748646178727,47.76,156.67,156.6,0.0488375]
[1748646179126,6.3801,156.68,156.63,6.3815]
[1748646179326,47.76,156.72,156.64,0.04464382]
[1748646179837,6.3793,156.7,156.65,6.3811]
[1748646180033,47.76,156.72,156.64,0.04464382]
[1748646180232,551.56,156.76,156.64,0.04464382]
[1748646180430,551.56,156.76,156.68,0.04033889]
[1748646180636,47.74,156.77,156.68,0.04033889]
[1748646180831,6.3787,156.71,156.68,0.04033889]
[1748646181027,66.5623386,156.77,156.68,0.04033889]
[1748646181744,18.8223386,156.73,156.68,0.04033889]
[1748646182035,47.74,156.77,156.68,0.04033889]
[1748646182240,18.8223386,156.75,156.68,0.04033889]
[1748646182537,47.74,156.77,156.6,47.74]
[1748646182742,18.8223386,156.71,156.6,47.74]
[1748646182936,47.74,156.7,156.6,47.74]
[1748646183337,47.74,156.7,156.61,2.1792]
[1748646183641,0.04463213,156.67,156.64,0.04464929]
[1748646183839,0.04463213,156.67,156.64,6.42574929]
[1748646184035,0.04463213,156.67,156.64,0.04464929]
[1748646184434,0.04463213,156.67,156.65,6.3808]
[1748646184642,0.04463213,156.67,156.64,0.04464929]
[1748646184941,66.5623386,156.75,156.64,0.04464929]
[1748646185243,47.74,156.75,156.63,2.0037]
[1748646185543,6.3783,156.72,156.67,6.3802]
[1748646185840,6.3781,156.73,156.68,0.04177659]
[1748646186035,47.74,156.75,156.68,0.04177659]
[1748646186432,6.3777,156.74,156.69,6.3793]
[1748646186848,47.74,156.75,156.69,6.3793]
[1748646187039,47.74,156.75,156.68,0.04177659]
[1748646187040,47.74,156.75,156.7,6.3789]
[1748646187337,48.1776,156.8,156.68,0.04177659]
[1748646187549,6.3765,156.77,156.72,0.0402874]
[1748646187736,47.74,156.8,156.72,0.0402874]
[1748646187939,18.8223386,156.79,156.72,0.0402874]
[1748646188139,18.8223386,156.75,156.63,2.0037]
[1748646188540,6.3781,156.73,156.68,6.3798]
[1748646188738,18.8223386,156.75,156.63,2.0037]
[1748646189042,47.72,156.74,156.63,2.0037]
[1748646189236,0.04140735,156.7,156.67,0.04501155]
[1748646190238,0.04140735,156.7,156.69,6.3795]
[1748646190445,47.72,156.79,156.69,6.38]
[1748646190641,47.72,156.79,156.68,2.1879]
[1748646190845,47.72,156.79,156.73,6.3777]
[1748646191345,47.72,156.79,156.74,0.04351108]
[1748646193240,6.3759,156.78,156.74,0.04351108]
[1748646193547,47.72,156.79,156.74,0.04351108]
[1748646193736,6.376,156.78,156.74,0.04351108]
[1748646194042,47.72,156.79,156.74,0.04351108]
[1748646194246,6.3744,156.82,156.74,0.04351108]
[1748646194443,47.72,156.84,156.76,0.04196463]
[1748646194746,47.72,156.84,156.77,6.3761]
[1748646194747,6.3745,156.82,156.77,6.3761]
[1748646194940,6.3745,156.82,156.76,0.04196463]
[1748646195448,47.72,156.84,156.76,0.04196463]
[1748646195647,47.72,156.89,156.76,0.04196463]
[1748646195843,47.72,156.89,156.81,0.04592236]
[1748646195844,6.3733,156.85,156.81,0.04592236]
[1748646196242,47.72,156.89,156.81,0.04592236]
[1748646197441,18.8223386,156.93,156.81,0.04592236]
[1748646197639,18.8223386,156.93,156.85,0.04229455]
[1748646198343,18.8223386,156.89,156.85,0.04229455]
[1748646198538,6.3726,156.86,156.85,0.04229455]
[1748646198744,18.8223386,156.91,156.85,0.04229455]
[1748646199147,617.6023386,156.94,156.85,0.04229455]
[1748646199351,598.78,156.94,156.85,0.04229455]
[1748646199549,6.37,156.93,156.88,6.3717]
[1748646199853,598.78,156.94,156.89,0.04714584]
[1748646200147,598.78,156.94,156.9,0.04211534]
[1748646200148,6.37,156.93,156.9,0.04211534]
[1748646200346,47.72,156.94,156.9,0.04204978]
[1748646200740,6.3698,156.93,156.9,0.04204978]
[1748646201448,6.3696,156.94,156.9,0.04204978]
[1748646201645,18.8223386,156.96,156.9,0.04204978]
[1748646201842,18.8223386,156.96,156.84,47.7]
[1748646201843,6.3716,156.89,156.84,54.0733]
[1748646202045,18.60747184,156.96,156.84,47.7]
[1748646202345,6.3716,156.89,156.84,47.7]
[1748646202650,18.8223386,156.97,156.84,47.7]
[1748646202847,0.04875516,156.92,156.89,0.04739803]
[1748646203047,0.04438664,156.92,156.89,0.04372707]
[1748646203450,6.41478664,156.92,156.89,0.04372707]
[1748646203643,0.04438664,156.92,156.89,0.04372707]
[1748646204450,6.371,156.9,156.89,0.01242707]
[1748646204857,6.3731,156.85,156.79,6.2674]
[1748646205152,18.8223386,156.92,156.79,6.2674]
[1748646205551,18.8223386,156.92,156.82,6.3742]
[1748646205744,18.8223386,156.92,156.79,6.2674]
[1748646205745,0.04079646,156.89,156.85,0.04817463]
[1748646206548,0.04079646,156.89,156.85,6.42117463]
[1748646206845,47.68,156.98,156.85,0.04817463]
[1748646207051,47.68,156.98,156.84,47.68]
[1748646207251,47.68,156.98,156.91,6.3703]
[1748646207445,47.68,156.98,156.84,47.68]
[1748646207654,6.3684,156.97,156.84,47.68]
[1748646207844,0.0416273,156.92,156.89,0.04502423]
[1748646208454,47.68,156.98,156.89,0.04502423]
[1748646208455,0.4269,157.01,156.89,0.04502423]
[1748646208649,6.3675,156.99,156.9,46.64]
[1748646209056,597.56,157.03,156.9,46.64]
[1748646209554,597.56,157.03,156.95,0.04105745]
[1748646209757,6.3678,156.98,156.95,0.04105745]
[1748646209961,597.56,157.03,156.95,0.04105745]
[1748646210257,6.3672,157.0,156.95,6.40985745]
[1748646210651,6.3672,157.0,156.96,6.3686]
[1748646211259,6.3672,157.0,156.95,6.40985745]
[1748646211458,46.64,157.03,156.95,0.04105745]
[1748646211659,46.62,157.08,156.95,0.04105745]
[1748646211855,46.62,157.08,157.0,0.04248787]
[1748646212056,0.4685,157.11,157.0,0.04248787]
[1748646212057,47.0885,157.11,157.0,0.04248787]
[1748646212255,46.62,157.11,157.04,0.04830564]
[1748646213264,6.3649,157.06,157.04,0.04830564]
[1748646213459,46.62,157.11,157.04,0.04830564]
[1748646213967,6.363,157.1,157.04,0.04830564]
[1748646214464,46.32771506,157.16,157.04,0.04830564]
[1748646214660,46.32771506,157.16,157.08,0.04822254]
[1748646215168,6.363,157.1,157.08,0.04822254]
[1748646215461,6.3633,157.09,157.08,0.04822254]
[1748646215768,18.8223386,157.13,157.01,2.1992]
[1748646216161,18.8223386,157.14,157.01,8.5654]
[1748646216359,18.8223386,157.14,157.01,2.1992]
[1748646216560,6.3641,157.07,157.06,0.04617895]
[1748646217262,6.3638,157.08,157.06,0.04617895]
[1748646217456,0.04685642,157.09,157.06,0.04617895]
[1748646217762,6.3641,157.07,157.06,0.04617895]
[1748646217962,0.04685642,157.09,157.06,0.04617895]
[1748646218363,6.3641,157.07,157.06,0.04617895]
[1748646218764,6.3638,157.08,157.06,0.04617895]
[1748646219164,0.04685642,157.09,157.06,0.04617895]
[1748646219764,0.04685642,157.09,157.06,6.41037895]
[1748646220070,0.04685642,157.09,157.06,0.04617895]
[1748646221868,18.86919502,157.09,156.98,46.6]
[1748646222172,18.8223386,157.09,156.98,46.6]
[1748646222773,46.58,157.1,156.98,46.6]
[1748646223068,46.47094817,157.1,157.02,0.04719962]
[1748646223474,46.58,157.16,157.02,0.04719962]
[1748646223775,46.58,157.16,157.01,2.1147]
[1748646223966,0.04061983,157.1,157.07,6.40611333]
[1748646224162,0.04061983,157.1,157.07,0.04231333]
[1748646224574,0.04061983,157.1,157.09,6.3633]
[1748646226075,46.58,157.16,157.12,6.3621]
[1748646226265,596.96,157.21,157.12,6.3621]
[1748646226673,596.96,157.21,157.13,6.3617]
[1748646227173,6.36,157.18,157.15,0.04165462]
[1748646227675,6.3601,157.17,157.15,0.04165462]
[1748646228077,6.3599,157.18,157.15,0.04165462]
[1748646228576,0.02205584,157.19,157.15,0.04165462]
[1748646228775,6.3598,157.18,157.15,0.04165462]
[1748646229181,0.02205584,157.19,157.15,0.04165462]
[1748646229480,6.3605,157.17,157.15,0.04165462]
[1748646230274,18.84439444,157.19,157.09,0.5]
[1748646230476,596.96,157.21,157.09,0.5]
[1748646230680,18.8223386,157.2,157.09,0.5]
[1748646230981,596.96,157.21,157.09,0.5]
[1748646231368,6.3606,157.16,157.13,0.04466667]